Cogmind - Beta 16 @@@ ROGUE MODE // 2025.12.30 @ 03:47:15 Player: Yellow Fin Result: Self-destructed Performance ------------- Evolutions (3) 1500 Regions Visited (8) 1600 Robots Destroyed (113) 565 Value Destroyed (2664) 2664 Prototype IDs (32) 640 Alien Tech Used (0) 0 Bonus (355) 355 TOTAL SCORE: 7324 Bonus ------- High Alert Combat Kills 55 Aligned with FarCom 300 Cogmind --------- Core Integrity 660/700 Matter 165/300 Energy 271/280 System Corruption 5% Temperature Cool (0) Movement Rolling (145) Ox5 Location -7/Waste Parts ------- > --- POWER (1) -------- Heavy Ion Engine > --- PROPULSION (2) --- Wheel > --- UTILITY (7) ------ Cooling System High-capacity Storage Unit Targeting Computer Targeting Computer Core Analyzer Improved Light Armor Plating > --- WEAPON (3) ------- Missile Launcher > --- INVENTORY (20) --- Heavy Ion Engine Improved Deuterium Engine Improved Deuterium Engine Wheel Compact Wheel Compact Wheel Centrium Wheel Improved Heat Sink Improved Heat Sink Coolant Injector Compact Battery (200) Core Analyzer Particle Charger Light Armor Plating Light Armor Plating Insulated Plating EM Pulse Cannon EM Pulse Cannon EM Pulse Cannon Cooled Particle Cannon Peak State ------------ > --- POWER ------------ Improved Deuterium Engine > --- PROPULSION ------- Wheel Wheel > --- UTILITY ---------- High-capacity Storage Unit Targeting Computer Core Analyzer Light Armor Plating Medium Armor Plating Hardened Medium Armor Plating > --- WEAPON ----------- AWS/Gauss > --- INVENTORY -------- Improved Deuterium Engine Improved Deuterium Engine Improved Deuterium Engine Wheel Compact Wheel Compact Wheel Improved Heat Sink Improved Heat Sink Improved Heat Sink Cooling System Coolant Injector Compact Battery Core Analyzer Light Armor Plating Heavy Laser Heavy Laser Heavy Laser Heavy Laser Heavy Particle Cannon Advanced EMP Blaster [Rating: 40] Favorites ----------- Power Ion Engine Engine Ion Engine Propulsion Wheel Wheel Wheel Utility Targeting Computer Device Cooling System Storage High-capacity Storage Unit Processor Targeting Computer Protection Light Armor Plating Weapon Light Cannon Energy Cannon EM Pulse Cannon Ballistic Gun AWS/Gauss Ballistic Cannon Light Cannon Launcher Missile Launcher Special Melee Weapon Datajack Build | -11 -10 -10 -10 -9 -8 -8 -7 -7 ------- Run | Yrd Mat Min Exi Min Mat Sto Fac Was Slots Evolved 6 | . . . . . 4 . 2 . Power . | . . . . . . . . . Propulsion . | . . . . . . . . . Utility 5 | . . . . . 4 . 1 . Weapon 1 | . . . . . . . 1 . Parts Attached 62 | 8 14 1 6 . 13 19 . 1 Power 8 | 1 1 1 . . 2 3 . . Engine 8 | 1 1 1 . . 2 3 . . Core . | . . . . . . . . . Reactor . | . . . . . . . . . Propulsion 18 | 2 5 . 3 . 1 7 . . Treads . | . . . . . . . . . Leg . | . . . . . . . . . Wheel 18 | 2 5 . 3 . 1 7 . . Hover . | . . . . . . . . . Flight . | . . . . . . . . . Utility 19 | 3 4 . 1 . 9 2 . . Device 3 | 2 . . . . . 1 . . Storage 4 | 1 2 . 1 . . . . . Processor 5 | . 2 . . . 3 . . . Hackware . | . . . . . . . . . Protection 7 | . . . . . 6 1 . . Artifact . | . . . . . . . . . Weapon 17 | 2 4 . 2 . 1 7 . 1 Energy Gun . | . . . . . . . . . Energy Cannon 6 | . . . . . . 5 . 1 Ballistic Gun 3 | 2 . . 1 . . . . . Ballistic Cannon 4 | . 4 . . . . . . . Launcher 3 | . . . . . 1 2 . . Special Weapon . | . . . . . . . . . Impact Weapon . | . . . . . . . . . Slashing Weapon . | . . . . . . . . . Piercing Weapon . | . . . . . . . . . Special Melee Weapon 1 | . . . 1 . . . . . Unidentified Prototypes 3 | . . . . . 1 2 . . Corrupted Parts 1 | . . . . . . 1 . . System Corruption 1 | . . . . . . 1 . . Parts Lost 9 | . 3 . . . . 4 . 2 Power . | . . . . . . . . . Propulsion 5 | . 3 . . . . 2 . . Utility 1 | . . . . . . 1 . . Weapon 3 | . . . . . . 1 . 2 Highest Loss Streak 2 | . 2 . . . . 2 . 2 To Critical Strikes . | . . . . . . . . . Average Backups 14 | 2 8 11 12 10 17 18 18 19 Power 1 | . 2 . . . 2 1 3 3 Propulsion 3 | . 3 4 4 3 2 2 3 3 Utility 5 | . . 2 2 2 7 9 9 9 Weapon 4 | . 2 3 5 5 5 5 3 4 Tool/Special . | . . . . . . . . . Unused Backups 34 | 1 3 . 1 . 14 2 . 13 Power 5 | . 2 . . . 1 . . 2 Propulsion 3 | . . . . . . 1 . 2 Utility 13 | . . . 1 . 3 1 . 8 Weapon 13 | 1 1 . . . 10 . . 1 Tool/Special . | . . . . . . . . . Average Slot Usage (%) 92 | . 99 100 86 85 87 95 99 97 Engine 11 | . 14 14 14 14 9 9 7 7 Wheel 22 | . 27 28 28 28 18 18 15 15 Device 1 | . 1 . . . . 5 7 7 Storage 11 | . 14 14 14 14 9 9 7 7 Processor 18 | . 12 14 14 14 19 27 23 23 Protection 9 | . . . . . 23 11 14 13 Energy Cannon 3 | . . . . . . 10 23 17 Ballistic Gun 5 | . 2 . 4 14 8 3 . . Ballistic Cannon 8 | . 25 28 3 . . . . . Peak Build Rating 40 | 7 8 8 22 22 40 40 32 33 Average Rating 22 | 5 7 8 12 22 35 31 31 32 On Entrance 18 | . 7 8 8 22 22 40 26 32 Avg Prop Armor Cover (%) . | . . . . . . . . . Naked Turns . | . . . . . . . . . Heaviest Build 81 | 14 31 31 55 55 81 72 74 74 Greatest Support 26 | 20 26 20 20 20 20 20 20 20 Greatest Overweight (x) 6 | . 1 1 2 2 4 6 3 3 Average Overweight (x) 2 | . . 1 1 2 3 3 3 3 Largest Inventory Capacity 20 | 8 15 15 20 20 20 20 20 20 Average Capacity 17 | 7 11 15 15 20 20 20 20 20 Most Carried 20 | 8 12 13 15 11 20 20 19 20 Average Carried 14 | 2 8 11 12 10 17 18 18 19 Final Capacity 20 | 8 15 15 20 20 20 20 20 20 Final Carried 20 | 6 10 13 10 11 20 20 19 20 Class Distribution -------------------- 97% | Mutant Dominant Class ---------------- Mutant | -10/Materials Mutant | -10/Mines Mutant | -10/Exiles Mutant | -9/Mines Mutant | -8/Materials Mutant | -8/Storage Gunner | -7/Factory Gunner | -7/Waste Resources | -11 -10 -10 -10 -9 -8 -8 -7 -7 ----------- Run | Yrd Mat Min Exi Min Mat Sto Fac Was Matter Collected 1764 | 348 552 157 193 46 154 275 39 . Remotely . | . . . . . . . . . Salvage Created 3253 | 180 493 119 . . 1280 1142 39 . Parts 244 | 13 46 19 . . 85 80 1 . Haulers Intercepted 5 | . 2 . . . 1 2 . . Recyclers Shooed 2 | 1 . . . . . 1 . . Parts Field Recycled . | . . . . . . . . . Retrieved Matter . | . . . . . . . . . Parts Self-Destructed . | . . . . . . . . . Prevented . | . . . . . . . . . Parts Restored . | . . . . . . . . . Kills | -11 -10 -10 -10 -9 -8 -8 -7 -7 ------- Run | Yrd Mat Min Exi Min Mat Sto Fac Was Combat Hostiles Destroyed 73 | . 15 14 . . 27 17 . . Guns 34 | . 3 . . . 27 4 . . Cannons 32 | . 12 13 . . . 7 . . AOE 5 | . . 1 . . . 4 . . Classes Destroyed 10 | 2 6 . . . 1 1 . . Worker 4 | . . . . . . 4 . . Builder 7 | . 1 1 . . 2 3 . . Tunneler 6 | 5 1 . . . . . . . Hauler 5 | . 2 . . . 1 2 . . Recycler 2 | 1 . . . . . 1 . . Operator 5 | . 1 . . . 1 3 . . Watcher 11 | . 3 . . . 5 2 1 . Swarmer 32 | . 6 12 . . 10 4 . . Grunt 27 | . 9 2 . . 11 5 . . Sentry 14 | . . . . . 6 8 . . Best Kill Streak 12 | 4 5 3 . . 5 12 1 . Combat Bots Only 4 | . 4 3 . . 4 4 . . Max Kills in Single Turn 3 | 1 1 1 . . 2 3 1 . Gunslinging . | . . . . . . . . . Exploded 2 | . . 1 . . . 2 . . Melee . | . . . . . . . . . Uniques/NPCs Destroyed . | . . . . . . . . . Combat | -11 -10 -10 -10 -9 -8 -8 -7 -7 -------- Run | Yrd Mat Min Exi Min Mat Sto Fac Was Hostile Shots Fired 266 | . 73 81 . . 45 65 . 2 Missed 78 | . 23 24 . . 15 16 . . Hits 188 | . 50 57 . . 30 49 . 2 Melee 2 | . . . . . . . . 2 Projectile 186 | . 50 57 . . 30 49 . . Critical Strikes 7 | . . 2 . . 1 3 . 1 Damage Taken 2329 | . 504 469 . . 396 877 . 83 Core 348 | . 93 120 . . 16 79 . 40 Absorbed by Shields . | . . . . . . . . . Regen/Repaired (Parts) 124 | . . . . . . 124 . . Core Remaining (%) 65 | 100 . . . 14 . 82 . . Volleys Fired 168 | 17 58 40 . . . 41 2 10 Largest 3 | 2 2 2 . . . 2 3 1 Hottest 189 | 40 60 60 . . . 126 189 75 Shots Fired 439 | 34 116 80 . . 92 101 6 10 Gun 169 | 34 19 . . . 92 24 . . Cannon 258 | . 97 80 . . . 73 6 2 Launcher 12 | . . . . . . 4 . 8 Special . | . . . . . . . . . Kinetic 346 | 34 116 80 . . 92 24 . . Thermal 2 | . . . . . . . . 2 Explosive 12 | . . . . . . 4 . 8 Electromagnetic 79 | . . . . . . 73 6 . Robot Hit Streak 16 | 6 12 6 . . 16 15 1 10 Robot Miss Streak 5 | 3 3 5 . . 3 3 4 1 Penetration Max 1 | . . . . . 1 . . . Secondary Targets . | . . . . . . . . . Autonomous 117 | . . . . . 92 25 . . Shots Hit Robots 282 | 20 64 34 8 . 70 76 1 9 Core Hits 130 | 9 26 15 . . 42 36 1 1 Critical Kills 2 | . . . . . 2 . . . Critical Parts Destroyed . | . . . . . . . . . Critical Strikes 8 | . 3 3 . . 2 . . . Destroy 2 | . . . . . 2 . . . Blast 6 | . 3 3 . . . . . . Melee Attacks 8 | . . . 8 . . . . . Impact . | . . . . . . . . . Slashing . | . . . . . . . . . Piercing . | . . . . . . . . . Sneak Attacks 7 | . . . 7 . . . . . Combat Hostiles . | . . . . . . . . . Follow-up Attacks . | . . . . . . . . . Damage Inflicted 7607 | 207 1075 773 . . 2219 2506 40 787 Guns 3131 | 207 128 . . . 2189 607 . . Cannons 3022 | . 947 590 . . . 1420 40 25 Explosions 1424 | . . 183 . . . 479 . 762 Melee . | . . . . . . . . . Ramming 30 | . . . . . 30 . . . Kinetic 4668 | 207 1075 590 . . 2189 607 . . Thermal 344 | . . 183 . . . 136 . 25 Explosive 1105 | . . . . . . 343 . 762 Electromagnetic 1460 | . . . . . . 1420 40 . Impact . | . . . . . . . . . Slashing . | . . . . . . . . . Piercing . | . . . . . . . . . Highest Corruption 5 | . . . . . . 3 . 5 Average Corruption 3 | . . . . . . 2 . 5 Corruption Purged . | . . . . . . . . . Corruption Blocked . | . . . . . . . . . Effects 2 | . . . . . . 1 . 1 Message Errors 1 | . . . . . . 1 . . Energy Discharges 1 | . . . . . . . . 1 Overload Shots . | . . . . . . . . . Overflow Damage 83 | . 7 . . . . 76 . . Projectiles 35 | . 7 . . . . 28 . . Explosions 48 | . . . . . . 48 . . Melee . | . . . . . . . . . Knockbacks 19 | . 7 12 . . . . . . Impact . | . . . . . . . . . Kinetic 19 | . 7 12 . . . . . . Secondary . | . . . . . . . . . Self-Inflicted Damage 213 | . . . . . 15 187 . 11 Shots 5 | . . . . . . 4 . 1 Rammed 1 | . . . . . 1 . . . Targets Rammed 1 | . . . . . 1 . . . Kicked . | . . . . . . . . . Crushed . | . . . . . . . . . Highest Temperature 90 | . 90 27 . . 7 36 54 . Average Temperature 20 | . 36 19 . . 5 8 29 . Received Heat Transfer 528 | . 168 27 . . 117 216 . . Siege Activations . | . . . . . . . . . Martial Activations . | . . . . . . . . . Shielding Activations . | . . . . . . . . . Robots Disrupted . | . . . . . . . . . Combat Hostiles . | . . . . . . . . . Robots Corrupted 2 | . . . . . . 2 . . Combat Hostiles 2 | . . . . . . 2 . . Parts Fried 11 | . . . . . . 11 . . Impact Corruptions . | . . . . . . . . . Robots Melted . | . . . . . . . . . Combat Hostiles . | . . . . . . . . . Parts Melted . | . . . . . . . . . Heat Transferred 437 | . . 200 . . . 200 . 37 Parts Sabotaged . | . . . . . . . . . Parts Stolen . | . . . . . . . . . Parts Stripped . | . . . . . . . . . Power Chain Reactions 2 | . . . . . . 2 . . Alert | -11 -10 -10 -10 -9 -8 -8 -7 -7 ------- Run | Yrd Mat Min Exi Min Mat Sto Fac Was Maximum Alert Level 2 | . . 1 . . 2 2 . . Low Security (%) 73 | 100 100 64 . 100 69 46 100 100 Level 1 21 | . . 35 . . 26 37 . . Level 2 5 | . . . . . 4 15 . . Level 3 . | . . . . . . . . . Level 4 . | . . . . . . . . . Level 5 . | . . . . . . . . . High Security . | . . . . . . . . . Max Security . | . . . . . . . . . Peak Influence 463 | 10 156 275 . . 455 463 190 69 Initial 188 | . 3 27 . . . 186 188 52 Average 145 | 2 85 134 . . 138 272 172 53 Influence Increases 2525 | 30 459 487 . . 809 691 22 27 Destroy 0b10 Robot/C 1460 | . 300 280 . . 540 340 . . Destroy 0b10 Robot/NC 200 | 30 40 5 . . 45 75 5 . Destroy Leader 362 | . 70 50 . . 132 108 2 . Disable Machine 165 | . 15 30 . . 45 60 15 . Destroy Structure 173 | . 4 17 . . 47 78 . 27 Lose Combat Pursuer 165 | . 30 105 . . . 30 . . Influence Decreases 2486 | 25 393 299 259 . 366 719 287 138 Entered New Map 887 | . 2 44 259 . . 257 227 98 Time Decay 1509 | 25 361 255 . . 366 422 60 20 Lost Part 90 | . 30 . . . . 40 . 20 Squads Dispatched 10 | . 2 . . . 3 5 . . Investigation 2 | . . . . . 2 . . . Extermination . | . . . . . . . . . Reinforcement 5 | . 2 . . . 1 2 . . Assault . | . . . . . . . . . Garrison 3 | . . . . . . 3 . . Intercept . | . . . . . . . . . Searches Triggered . | . . . . . . . . . Construction Impeded 1 | . . . . . . 1 . . Haulers Reinforced . | . . . . . . . . . Active Scanning Responses . | . . . . . . . . . Cargo Convoy Interrupts . | . . . . . . . . . Stealth | -11 -10 -10 -10 -9 -8 -8 -7 -7 --------- Run | Yrd Mat Min Exi Min Mat Sto Fac Was Distress Signals 2 | . 2 . . . . . . . Communications Jammed . | . . . . . . . . . Distress Signals . | . . . . . . . . . Times Spotted 106 | . 23 22 . . 34 24 2 1 Peak Tracking Total 5 | . 4 3 . . 5 4 2 1 Tactical Retreats 9 | . 2 5 . . . 2 . . Traps | -11 -10 -10 -10 -9 -8 -8 -7 -7 ------- Run | Yrd Mat Min Exi Min Mat Sto Fac Was Traps Triggered 7 | . . . . . 2 4 1 . Indirectly . | . . . . . . . . . Trap Hack Attempts . | . . . . . . . . . Triggered . | . . . . . . . . . Disarmed . | . . . . . . . . . Reprogrammed . | . . . . . . . . . Reused . | . . . . . . . . . Traps Extracted . | . . . . . . . . . Installed . | . . . . . . . . . Triggered . | . . . . . . . . . Machines | -11 -10 -10 -10 -9 -8 -8 -7 -7 ---------- Run | Yrd Mat Min Exi Min Mat Sto Fac Was Machines Disabled 11 | . 1 2 . . 3 4 1 . Max in Single Turn 3 | . 1 2 . . 1 3 1 . Machines Repaired . | . . . . . . . . . Machines Dismantled . | . . . . . . . . . Machines Sabotaged . | . . . . . . . . . Overloaded Fab Kills . | . . . . . . . . . Hacking | -11 -10 -10 -10 -9 -8 -8 -7 -7 --------- Run | Yrd Mat Min Exi Min Mat Sto Fac Was Machines Accessed 7 | . 1 . 2 . 1 3 . . Terminals 1 | . . . . . . 1 . . Fabricators . | . . . . . . . . . Repair Stations 3 | . 1 . . . . 2 . . Recycling Units . | . . . . . . . . . Scanalyzers 1 | . . . . . 1 . . . Garrison Access . | . . . . . . . . . Total Hacks 17 | . 3 . 5 . 3 6 . . Successful 11 | . 1 . 5 . 1 4 . . Failed 5 | . 2 . . . 1 2 . . Catastrophic . | . . . . . . . . . Database Lockouts 1 | . . . . . 1 . . . Manual 1 | . . . 1 . . . . . Terminals 1 | . . . . . . 1 . . Fabricators . | . . . . . . . . . Repair Stations 8 | . 3 . . . . 5 . . Recycling Units . | . . . . . . . . . Scanalyzers 3 | . . . . . 3 . . . Garrison Access . | . . . . . . . . . Terminal Hacks 6 | . . . 5 . . 1 . . Record 4 | . . . 4 . . . . . Open Door 1 | . . . . . . 1 . . Proto ID Catalog 1 | . . . 1 . . . . . Fabricator Hacks . | . . . . . . . . . Repair Station Hacks 4 | . 1 . . . . 3 . . Scan Component 3 | . 1 . . . . 2 . . Repair 1 | . . . . . . 1 . . Recycling Unit Hacks . | . . . . . . . . . Scanalyzer 1 | . . . . . 1 . . . Retrieve Study 1 | . . . . . 1 . . . Garrison Access Hacks . | . . . . . . . . . Unauthorized Hacks . | . . . . . . . . . Terminals . | . . . . . . . . . Fabricators . | . . . . . . . . . Repair Stations . | . . . . . . . . . Recycling Units . | . . . . . . . . . Scanalyzers . | . . . . . . . . . Garrison Access . | . . . . . . . . . Data Cores Recovered 3 | . . . . . 1 2 . . Used . | . . . . . . . . . Hacking Detections 4 | . 1 . . . 1 2 . . Full Trace Events 1 | . 1 . . . . . . . Feedback Events . | . . . . . . . . . Feedback Blocked . | . . . . . . . . . Robot Schematics Acquired . | . . . . . . . . . Robots Built . | . . . . . . . . . Authchips . | . . . . . . . . . Time . | . . . . . . . . . Total Robot Build Rating . | . . . . . . . . . Part Schematics Acquired . | . . . . . . . . . Parts Built . | . . . . . . . . . Authchips . | . . . . . . . . . Time . | . . . . . . . . . Total Part Build Rating . | . . . . . . . . . Part Studies Acquired 1 | . . . . . 1 . . . Parts Repaired 1 | . . . . . . 1 . . Time 38 | . . . . . . 38 . . Parts Recycled . | . . . . . . . . . Recycled Matter . | . . . . . . . . . Retrieved Matter . | . . . . . . . . . Retrieved Components . | . . . . . . . . . Parts Scanalyzed . | . . . . . . . . . Part Schematics Acquired . | . . . . . . . . . Parts Damaged . | . . . . . . . . . Bothacking | -11 -10 -10 -10 -9 -8 -8 -7 -7 ------------ Run | Yrd Mat Min Exi Min Mat Sto Fac Was Used RIF Installer . | . . . . . . . . . Robots Hacked 5 | . . . 5 . . . . . Non-combat 3 | . . . 3 . . . . . Combat 2 | . . . 2 . . . . . Robot Hacks Applied 7 | . . . 7 . . . . . parse_system 7 | . . . 7 . . . . . Relay Couplers Released . | . . . . . . . . . Fabnet Peak Effective % . | . . . . . . . . . Robots Rewired . | . . . . . . . . . Allies Hacked . | . . . . . . . . . Hacks Repelled . | . . . . . . . . . Allies | -11 -10 -10 -10 -9 -8 -8 -7 -7 -------- Run | Yrd Mat Min Exi Min Mat Sto Fac Was Total Allies . | . . . . . . . . . Largest Group . | . . . . . . . . . Highest-Rated Group . | . . . . . . . . . Highest-Rated Ally . | . . . . . . . . . Total Orders . | . . . . . . . . . Ally Attacks . | . . . . . . . . . Total Damage . | . . . . . . . . . Kills . | . . . . . . . . . Allies Corrupted . | . . . . . . . . . Allies Melted . | . . . . . . . . . Intel | -11 -10 -10 -10 -9 -8 -8 -7 -7 ------- Run | Yrd Mat Min Exi Min Mat Sto Fac Was Active Infowar (turns) 534 | 42 492 . . . . . . . Seismic 115 | 42 73 . . . . . . . T.N.C. 419 | . 419 . . . . . . . Robot Analysis Total . | . . . . . . . . . Derelict Logs Recovered 4 | . . 1 . 3 . . . . Drone Launches . | . . . . . . . . . Drone Recoveries . | . . . . . . . . . Exploration | -11 -10 -10 -10 -9 -8 -8 -7 -7 ------------- Run | Yrd Mat Min Exi Min Mat Sto Fac Was Turns Passed 4941 | 116 854 608 436 289 1434 1028 129 47 Spaces Moved 3748 | 60 662 500 428 262 1141 579 99 17 Core 1 | 1 . . . . . . . . Treads . | . . . . . . . . . Legs . | . . . . . . . . . Wheels 3747 | 59 662 500 428 262 1141 579 99 17 Hover . | . . . . . . . . . Flight . | . . . . . . . . . Fastest Speed 50 | 50 80 95 95 110 115 115 115 115 Average Speed 105 | 79 94 95 96 110 116 115 115 115 Slowest Speed 160 | 80 105 95 110 110 130 160 115 115 Overloaded Moves . | . . . . . . . . . Propulsion Burnouts . | . . . . . . . . . Robots Hopped . | . . . . . . . . . Potential Cave-ins . | . . . . . . . . . Cave-ins Triggered . | . . . . . . . . . Exploration Rate (%) 55 | 4 94 75 80 59 79 74 3 27 Regions Visited 8 Branch Regions 4 Pre-discovered Areas 1 | . . . 1 . . . . . Known Exits Taken 3 | . . . . 1 1 1 . . Unknown Exits Taken 4 | 1 1 1 1 . . . . . Scrap Searched 2 | . . 1 . 1 . . . . Spaces Dug 14 | . . . . . . 14 . . Terrain Destroyed 186 | . . 17 . . 49 79 . 41 Melee . | . . . . . . . . . Projectile 65 | . . . . . 49 15 . 1 AOE 121 | . . 17 . . . 64 . 40 Terrain Rammed . | . . . . . . . . . Walls Destroyed . | . . . . . . . . . Machines Disabled . | . . . . . . . . . Actions | -11 -10 -10 -10 -9 -8 -8 -7 -7 --------- Run | Yrd Mat Min Exi Min Mat Sto Fac Was Total 4406 | 95 778 552 451 262 1264 863 110 31 Wait 262 | . 16 6 . . 41 193 6 . Move 3741 | 59 661 499 427 261 1140 578 99 17 Hop . | . . . . . . . . . Pick Up 84 | 8 17 4 2 1 37 13 1 1 Fast Attach 12 | 7 . . . . . 4 . 1 Attach 21 | . 4 . 2 . 6 7 2 . Detach 5 | . 1 . 2 . 1 1 . . Swap 42 | 1 10 2 4 . 10 13 . 2 Drop 62 | 3 11 1 6 . 28 13 . . Fire 168 | 17 58 40 . . . 41 2 10 Melee 8 | . . . 8 . . . . . Ram 1 | . . . . . 1 . . . Kick . | . . . . . . . . . Crush . | . . . . . . . . . Escape Stasis . | . . . . . . . . . Rewire . | . . . . . . . . . Trap . | . . . . . . . . . Miscellaneous . | . . . . . . . . . Route ------- -11/Scrapyard -10/Materials (discovered 5 exits: [*Mat x3] / [*Min x2]) -10/Mines (discovered 3 exits: [*Mat] / *Exi / [*Sub]) -10/Exiles -9/Mines (discovered 2 exits: *Mat x2) -8/Materials (discovered 3 exits: *Fac / *Sto x2) -8/Storage -7/Factory -7/Waste History --------- Turn | Location | Event 49 | -11/Scrapyard | Discovered new exit (range 14) 117 | -11/Scrapyard | Entered Materials 117 | -10/Materials | Discovered new exit (range 8) 239 | -10/Materials | Discovered new exit (range 12) 316 | -10/Materials | Build established: Mutant 398 | -10/Materials | Discovered new exit (range 12) 499 | -10/Materials | Discovered new exit (range 3) 599 | -10/Materials | Discovered new exit (range 16) 971 | -10/Materials | Entered Mines 1198 | -10/Mines | Learned location of 1 exit from Materials 1290 | -10/Mines | Core integrity fell below 50% 1328 | -10/Mines | Discovered new exit (range 10) 1382 | -10/Mines | A weapon hastily lodged in a ceiling crevice suddenly fell to the ground 1394 | -10/Mines | Deemed a non-threat by the Exiles lab entrance 1394 | -10/Mines | Discovered new exit (range 5) 1462 | -10/Mines | Discovered new exit (range 10) 1464 | -10/Mines | Found a hidden stash of uninstalled traps 1533 | -10/Mines | Core integrity fell below 20% 1579 | -10/Mines | Entered Exiles 1602 | -10/Exiles | Met 8R-AWN 1619 | -10/Exiles | Met EX-HEX 1687 | -10/Exiles | Met EX-DEC 1740 | -10/Exiles | Visited The Gauntlet 1832 | -10/Exiles | Met EX-BIN 1848 | -10/Exiles | Aligned with FarCom system 1849 | -10/Exiles | Given EX-Vault access code 1871 | -10/Exiles | Opened EX-Vault 1878 | -10/Exiles | Found AWS/Gauss 1905 | -10/Exiles | Warned to stay clear of 0b10 Research branches 1944 | -10/Exiles | Learned location of Zion (-7) 2003 | -10/Exiles | Discovered new exit (range 14) 2015 | -10/Exiles | Left Exiles lab with AWS/Gauss 2015 | -10/Exiles | Entered Mines 2153 | -9/Mines | Discovered new exit (range 15) 2194 | -9/Mines | Identified exit to Materials 2202 | -9/Mines | Found a damaged Exp. Sensor Array with a note attached 2209 | -9/Mines | Learned location of 1 exit from Materials 2213 | -9/Mines | Learned 2 Materials zone layouts 2304 | -9/Mines | Entered Materials 2304 | -8/Materials | Evolved 4 slots: Utility x4 2305 | -8/Materials | Identified exit to Factory 2305 | -8/Materials | Identified exit to Storage 2433 | -8/Materials | Central database locked down 3285 | -8/Materials | Discovered exit to Storage (range 11) 3738 | -8/Materials | Entered Storage 4060 | -8/Storage | Repaired Hrd. Medium Armor Plating 4119 | -8/Storage | AWS/Gauss suddenly broke down 4354 | -8/Storage | Garrison activated, responded to threat 4651 | -8/Storage | Met 01-MTF 4730 | -8/Storage | Discovered exit to Factory (range 10) 4766 | -8/Storage | Entered Factory 4766 | -7/Factory | Accompanied by 1 ally (01-MTF) 4766 | -7/Factory | Evolved 2 slots: Utility x1, Weapon x1 4769 | -7/Factory | 01-MTF left 4895 | -7/Factory | Sucked down chute 4895 | -7/Factory | Entered Waste 4910 | -7/Waste | EMP discharged 4915 | -7/Waste | Spotted C-40 Crusher 4938 | -7/Waste | Crushed by Compactor (1 part destroyed, 2 dropped) 4938 | -7/Waste | Spotted C-40 Crusher 4941 | -7/Waste | Crushed by Compactor (1 part destroyed, 1 dropped) 4941 | -7/Waste | Spotted C-40 Crusher 4942 | -7/Waste | Self-destructed Last Messages --------------- 04895_ Triggered Chute Trap. 04895_ A hatch slides open and sucks a vortex of air into the floor. LOCATION=UNKNOWN GOAL=ESCAPE 04895_ Receiving FarCom transmissions... 04899_ Acquired Centrium Wheel. 04900_ ALERT: Foreign system detected. Charging EMP. 04910_ System corrupted (+5). 04919_ Corrupted Imp. Powered Armor crushed. 04923_ System corrupted: Energy discharge (-109). 04938_ EM Pulse Cannon crushed. 04938_ Hvy. Particle Cannon crushed. 04938_ Lgt. Armor Plating crushed. 04939_ Acquired Hvy. Particle Cannon. 04941_ Lgt. Armor Plating crushed. 04941_ Hvy. Particle Cannon crushed. 04941_ Wheel+ crushed. Map ----- +----------------------------------------------------+ | ?????????????????????????????????????????????????? | | ?????????????????????????????????????????????????? | | ?????????????????????????????????????????????????? | | ?????????????????????????????????????????????????? | | ?????????????????????????????????????????????????? | | ?????????????????????????????????????????????????? | | ?????????????????????????????????????????????????? | | ?????????????????????????????????????????????????? | | ?????????????????????????????????????????????????? | | ?????????????????????????????????????????????????? | | ?????????????????????????????????????????????????? | | ?????????????????????????????????????????????????? | | ?????????????????????????????????????????????????? | | ?????????????????????????????????????????????????? | | ?????????????????????????????????????????????????? | | ?????????????????????????????????????????????????? | | ?????????????????????????????????????????????????? | | ?????????????????????????????????????????????????? | | ?????????????????????????????????????????????????? | | ?????????????????????######???????????#??????????? | | ?????????????????????# #????????? #??????????? | | ???????############??# #?##???# #??????????? | | ???????# #??# ## ## # ?????????? | | ???????# #??# # ????????? | | ???????# #### ????????? | | ???????# @CC ????????? | | ???????# ! CC ????????? | | ???????# C????????? | | ???????# ?????????? | | ???????# #### # ?????????? | | ???????# #??# #####? #??????????? | | ???????# #??# #??????# #??????????? | | ???????############??# #???????? #??????????? | | ?????????????????????# #?????????? ???????????? | | ????????????????????? ??????????????????????? | | ????????????????????? ?????????????????????? | | ???????????????????? ????????????????????? | | ???????????????????? ????????????????????? | | ???????????????????### CC###????????????????????? | | ?????????????????????# CC#??????????????????????? | | ?????????????????????? ???????????????????????? | | ?????????????????????????????????????????????????? | | ?????????????????????????????????????????????????? | | ?????????????????????????????????????????????????? | | ?????????????????????????????????????????????????? | | ?????????????????????????????????????????????????? | | ?????????????????????????????????????????????????? | | ?????????????????????????????????????????????????? | | ?????????????????????????????????????????????????? | | ?????????????????????????????????????????????????? | +----------------------------------------------------+ Best States ------------- Heat Dissipation 56 Energy Generation 16 Energy Capacity 290 Matter Stores 300 Matter Capacity 300 Sight Range 16 Terrain Scan Density 10 Armor Coverage 750 Evasion (%) 44 Targeting Accuracy 10 Core Analysis 6 Item Schematics ----------------- None Robot Schematics ------------------ None Fabricated ------------ Nothing Repaired ---------- Hrd. Medium Armor Plating | 48% | -8/Storage Studied --------- Wheel | -8/Materials | Hacked Alien Tech Used ----------------- None Achievements -------------- Analysis Probe Challenges ------------ None Game ------ Seed DimensionalArmoredCycler Manual? 0 Play Time 00:56:46 Cumulative 71.8 hours Start 2025.12.30 @ 02:47:46 End 2025.12.30 @ 03:47:15 Sessions 1 Manual Loads 0 Difficulty Rogue Special Mode None Game No. 22 Rogue 22 Adventurer 0 Explorer 0 Win Type - Total 2 Types 1/0/1/0/0/0/0/0/0/0 Lore% 17 Gallery% 26 Achievement% 27 Wizard Run 0 Options --------- Layout 1 ASCII 0 Keyboard 0 Movement Mouse Keybinds 0 Fullscreen 1 Font 24/Smallcaps Map View 50x35 Zoom Use 0% Tactical HUD 1 Map Filters NONE Filters NONE Steam 1 RUN: d7101a4c-7805-4b8f-b716-3b3456641f01